[Event "Early-Titled-Tuesday-Blitz-January-16-2024"]
[Site "Chess.com"]
[Date "2024.01.16"]
[Round "5"]
[White "margarita_2703"]
[Black "DonJuanEGenaro"]
[Result "1/2-1/2"]
[WhiteElo "2281"]
[BlackElo "1874"]
[TimeControl "180+1"]
[EndTime "8:59:20 PST"]
[Termination "Game drawn - insufficient material"]

1. h3 {[%clk 0:03:00.9]} 1... d5 {[%clk 0:02:57.6]} 2. d4 {[%clk 0:02:54.2]}
2... c5 {[%clk 0:02:52.9]} 3. c3 {[%clk 0:02:44.9]} 3... cxd4 {[%clk 0:02:49.8]}
4. cxd4 {[%clk 0:02:45.8]} 4... Nf6 {[%clk 0:02:48.4]} 5. Nc3 {[%clk 0:02:45.4]}
5... Nc6 {[%clk 0:02:47.6]} 6. Bf4 {[%clk 0:02:44.1]} 6... e6 {[%clk 0:02:46.9]}
7. Nf3 {[%clk 0:02:43.1]} 7... Ne4 {[%clk 0:02:45]} 8. e3 {[%clk 0:02:40.5]}
8... Qa5 {[%clk 0:02:43.9]} 9. Qb3 {[%clk 0:02:36.4]} 9... Bb4 {[%clk
0:02:43.2]} 10. Rc1 {[%clk 0:02:33.2]} 10... a6 {[%clk 0:02:33.3]} 11. Bd3
{[%clk 0:02:29.9]} 11... f5 {[%clk 0:02:31]} 12. Bxe4 {[%clk 0:02:22.9]} 12...
fxe4 {[%clk 0:02:29.4]} 13. Ne5 {[%clk 0:02:23.8]} 13... O-O {[%clk 0:02:15.3]}
14. O-O {[%clk 0:02:16.2]} 14... Nxe5 {[%clk 0:02:11.5]} 15. Bxe5 {[%clk
0:02:17.1]} 15... Bd7 {[%clk 0:02:06.9]} 16. a3 {[%clk 0:02:00.2]} 16... Bxc3
{[%clk 0:02:04.8]} 17. Qxc3 {[%clk 0:02:01.1]} 17... Qxc3 {[%clk 0:02:01.4]} 18.
Rxc3 {[%clk 0:02:02]} 18... Rac8 {[%clk 0:02:00.1]} 19. Rfc1 {[%clk 0:01:55]}
19... Rc6 {[%clk 0:01:58.4]} 20. Rxc6 {[%clk 0:01:52.7]} 20... Bxc6 {[%clk
0:01:57.1]} 21. b4 {[%clk 0:01:53.2]} 21... Rd8 {[%clk 0:01:46.4]} 22. f3 {[%clk
0:01:52.1]} 22... exf3 {[%clk 0:01:42.7]} 23. gxf3 {[%clk 0:01:53]} 23... Kf7
{[%clk 0:01:41.3]} 24. Kf2 {[%clk 0:01:42.1]} 24... g5 {[%clk 0:01:40]} 25. Kg3
{[%clk 0:01:31.8]} 25... Kg6 {[%clk 0:01:33.7]} 26. h4 {[%clk 0:01:31.6]} 26...
Rf8 {[%clk 0:01:21.8]} 27. hxg5 {[%clk 0:01:30.7]} 27... Kxg5 {[%clk 0:01:19.7]}
28. Rh1 {[%clk 0:01:30.9]} 28... Kg6 {[%clk 0:01:18.8]} 29. Bf4 {[%clk
0:01:30.8]} 29... h5 {[%clk 0:01:16.6]} 30. Kh4 {[%clk 0:01:30.3]} 30... e5
{[%clk 0:01:03.7]} 31. Rg1+ {[%clk 0:01:31.2]} 31... Kh7 {[%clk 0:00:56.9]} 32.
dxe5 {[%clk 0:01:29]} 32... d4 {[%clk 0:00:55.8]} 33. Rg5 {[%clk 0:01:18.1]}
33... dxe3 {[%clk 0:00:54.9]} 34. Rxh5+ {[%clk 0:01:16.9]} 34... Kg6 {[%clk
0:00:54.8]} 35. Rg5+ {[%clk 0:01:16.2]} 35... Kh7 {[%clk 0:00:54.1]} 36. Bxe3
{[%clk 0:01:14.9]} 36... Rxf3 {[%clk 0:00:52.2]} 37. Rh5+ {[%clk 0:01:05.8]}
37... Kg6 {[%clk 0:00:50.2]} 38. Rg5+ {[%clk 0:01:05.1]} 38... Kf7 {[%clk
0:00:49]} 39. Bc5 {[%clk 0:01:04]} 39... Bd7 {[%clk 0:00:47.2]} 40. Rg1 {[%clk
0:00:51]} 40... Ke6 {[%clk 0:00:46.7]} 41. Bd6 {[%clk 0:00:44]} 41... Rxa3
{[%clk 0:00:38.7]} 42. Rg6+ {[%clk 0:00:43.3]} 42... Kd5 {[%clk 0:00:37.6]} 43.
Rg7 {[%clk 0:00:43.1]} 43... Rh3+ {[%clk 0:00:34.1]} 44. Kg5 {[%clk 0:00:36.8]}
44... Rg3+ {[%clk 0:00:33]} 45. Kf6 {[%clk 0:00:35.9]} 45... Rxg7 {[%clk
0:00:30.1]} 46. Kxg7 {[%clk 0:00:36.8]} 46... b6 {[%clk 0:00:25.5]} 47. Kf8
{[%clk 0:00:21.5]} 47... a5 {[%clk 0:00:19.7]} 48. bxa5 {[%clk 0:00:21.4]} 48...
bxa5 {[%clk 0:00:19]} 49. Ke7 {[%clk 0:00:22.3]} 49... Be6 {[%clk 0:00:17.6]}
50. Kf6 {[%clk 0:00:21.4]} 50... a4 {[%clk 0:00:17]} 51. Be7 {[%clk 0:00:21.5]}
51... Bg4 {[%clk 0:00:15.5]} 52. Ba3 {[%clk 0:00:22.4]} 52... Kc4 {[%clk
0:00:14.3]} 53. Bd6 {[%clk 0:00:22.2]} 53... Kb3 {[%clk 0:00:13]} 54. Be7 {[%clk
0:00:21.8]} 54... a3 {[%clk 0:00:11]} 55. Bxa3 {[%clk 0:00:21.8]} 55... Kxa3
{[%clk 0:00:11]} 56. e6 {[%clk 0:00:22.7]} 56... Bxe6 {[%clk 0:00:07.5]} 1/2-1/2

[Event "Early-Titled-Tuesday-Blitz-January-16-2024"]
[Site "Chess.com"]
[Date "2024.01.16"]
[Round "5"]
[White "K_A_S_T_O_R"]
[Black "SahibSinghKnight"]
[Result "1-0"]
[WhiteElo "2909"]
[BlackElo "2684"]
[TimeControl "180+1"]
[EndTime "8:59:21 PST"]
[Termination "K_A_S_T_O_R won on time"]

1. e4 {[%clk 0:03:00.9]} 1... e6 {[%clk 0:02:51.6]} 2. d4 {[%clk 0:03:00.3]}
2... d5 {[%clk 0:02:51.1]} 3. Nc3 {[%clk 0:03:00.8]} 3... Nf6 {[%clk 0:02:50.4]}
4. e5 {[%clk 0:03:01.1]} 4... Nfd7 {[%clk 0:02:50.1]} 5. Nce2 {[%clk 0:03:01.7]}
5... c5 {[%clk 0:02:49.9]} 6. c3 {[%clk 0:03:02]} 6... Nc6 {[%clk 0:02:45.9]} 7.
f4 {[%clk 0:03:01.7]} 7... Qb6 {[%clk 0:02:36.5]} 8. Nf3 {[%clk 0:03:00.3]} 8...
f6 {[%clk 0:02:34.6]} 9. a3 {[%clk 0:02:58.5]} 9... a5 {[%clk 0:02:21.1]} 10. h4
{[%clk 0:02:44.7]} 10... fxe5 {[%clk 0:02:12.1]} 11. fxe5 {[%clk 0:02:42.9]}
11... Be7 {[%clk 0:02:12.1]} 12. Nf4 {[%clk 0:02:42]} 12... Nd8 {[%clk
0:01:54.2]} 13. Bd3 {[%clk 0:02:38.1]} 13... Nf8 {[%clk 0:01:16.9]} 14. Rb1
{[%clk 0:02:28.8]} 14... Bd7 {[%clk 0:01:10.6]} 15. Qe2 {[%clk 0:02:23.9]} 15...
cxd4 {[%clk 0:00:56.8]} 16. cxd4 {[%clk 0:02:22.8]} 16... Nc6 {[%clk 0:00:57.4]}
17. Be3 {[%clk 0:02:22.2]} 17... a4 {[%clk 0:00:47.6]} 18. Nh5 {[%clk
0:02:19.8]} 18... Rg8 {[%clk 0:00:36.8]} 19. O-O {[%clk 0:02:19]} 19... Na5
{[%clk 0:00:27.7]} 20. Ng5 {[%clk 0:02:14.1]} 20... h6 {[%clk 0:00:20.4]} 21.
Nf3 {[%clk 0:02:05.6]} 21... Nc4 {[%clk 0:00:19.9]} 22. Bxc4 {[%clk 0:01:56.2]}
22... dxc4 {[%clk 0:00:20.1]} 23. Nf4 {[%clk 0:01:54.7]} 23... Bb5 {[%clk
0:00:19.8]} 24. Qc2 {[%clk 0:01:41.3]} 24... Qc6 {[%clk 0:00:18.5]} 25. Rbd1
{[%clk 0:01:35.4]} 25... O-O-O {[%clk 0:00:16.7]} 26. d5 {[%clk 0:01:33.9]}
26... exd5 {[%clk 0:00:16.7]} 27. Nd4 {[%clk 0:01:34.4]} 27... Qa6 {[%clk
0:00:16.5]} 28. Nfe2 {[%clk 0:01:27]} 28... Bc5 {[%clk 0:00:15.1]} 29. Nc3
{[%clk 0:01:26.7]} 29... Be8 {[%clk 0:00:11.2]} 30. Qf5+ {[%clk 0:01:17.6]}
30... Kb8 {[%clk 0:00:09.7]} 31. Kh1 {[%clk 0:01:07.9]} 31... Bg6 {[%clk
0:00:09.8]} 32. Qf2 {[%clk 0:01:04.1]} 32... Bd3 {[%clk 0:00:09.7]} 33. Rfe1
{[%clk 0:01:04.1]} 33... Ne6 {[%clk 0:00:06.5]} 34. Nxe6 {[%clk 0:01:01.9]}
34... Bxe3 {[%clk 0:00:06.7]} 35. Qxe3 {[%clk 0:01:02]} 35... Qxe6 {[%clk
0:00:07.4]} 36. Nb5 {[%clk 0:01:02.6]} 36... Qa6 {[%clk 0:00:04.9]} 37. Nd6
{[%clk 0:01:01.3]} 37... Rgf8 {[%clk 0:00:05]} 38. Qg3 {[%clk 0:00:56.4]} 38...
Ka8 {[%clk 0:00:03.4]} 39. Re3 {[%clk 0:00:51]} 39... Qb6 {[%clk 0:00:03]} 40.
Rf3 {[%clk 0:00:49.5]} 40... Rxf3 {[%clk 0:00:02.7]} 41. Qxf3 {[%clk 0:00:45.6]}
41... Qxb2 {[%clk 0:00:03.6]} 42. Qxd5 {[%clk 0:00:45.7]} 42... Be2 {[%clk
0:00:04]} 43. Rd2 {[%clk 0:00:43.2]} 43... Qb1+ {[%clk 0:00:04.6]} 44. Kh2
{[%clk 0:00:43.7]} 44... Bd3 {[%clk 0:00:05.3]} 45. e6 {[%clk 0:00:40.3]} 45...
Qb6 {[%clk 0:00:05.1]} 46. e7 {[%clk 0:00:39.4]} 46... Rb8 {[%clk 0:00:05.1]}
47. e8=Q {[%clk 0:00:38.4]} 47... Rxe8 {[%clk 0:00:05.3]} 48. Nxe8 {[%clk
0:00:39.1]} 48... Qe3 {[%clk 0:00:05.5]} 49. Rb2 {[%clk 0:00:32.5]} 49... Be4
{[%clk 0:00:03.9]} 50. Qd8+ {[%clk 0:00:28.9]} 50... Ka7 {[%clk 0:00:04.1]} 51.
Qa5+ {[%clk 0:00:29.5]} 51... Kb8 {[%clk 0:00:04.4]} 52. Qe5+ {[%clk 0:00:30.1]}
52... Ka8 {[%clk 0:00:04.3]} 53. Nd6 {[%clk 0:00:27.9]} 53... c3 {[%clk
0:00:02.1]} 54. Rb5 {[%clk 0:00:23.2]} 1-0

[Event "Early-Titled-Tuesday-Blitz-January-16-2024"]
[Site "Chess.com"]
[Date "2024.01.16"]
[Round "5"]
[White "Journey_to_GrandMaster_YT"]
[Black "Aygehovit1992"]
[Result "0-1"]
[WhiteElo "2511"]
[BlackElo "2719"]
[TimeControl "180+1"]
[EndTime "8:59:21 PST"]
[Termination "Aygehovit1992 won by resignation"]

1. d4 {[%clk 0:03:00.8]} 1... Nf6 {[%clk 0:02:50.3]} 2. Nf3 {[%clk 0:03:01]}
2... g6 {[%clk 0:02:50.5]} 3. g3 {[%clk 0:03:01.3]} 3... Bg7 {[%clk 0:02:51.2]}
4. Bg2 {[%clk 0:03:01.9]} 4... O-O {[%clk 0:02:52.1]} 5. O-O {[%clk 0:03:02.4]}
5... d6 {[%clk 0:02:53]} 6. b3 {[%clk 0:03:02.6]} 6... a5 {[%clk 0:02:52.4]} 7.
Bb2 {[%clk 0:03:02.1]} 7... a4 {[%clk 0:02:53]} 8. c4 {[%clk 0:03:02.2]} 8...
Nc6 {[%clk 0:02:51.3]} 9. Nbd2 {[%clk 0:03:01.6]} 9... a3 {[%clk 0:02:47.5]} 10.
Bc3 {[%clk 0:03:01.6]} 10... Bf5 {[%clk 0:02:35.5]} 11. Nh4 {[%clk 0:02:54.4]}
11... Bd7 {[%clk 0:02:35.3]} 12. e4 {[%clk 0:02:53]} 12... e5 {[%clk 0:02:34.5]}
13. d5 {[%clk 0:02:51]} 13... Nd4 {[%clk 0:02:34.9]} 14. Nhf3 {[%clk 0:02:47.1]}
14... Nh5 {[%clk 0:02:29.8]} 15. Rc1 {[%clk 0:02:39.4]} 15... f5 {[%clk
0:02:28.6]} 16. exf5 {[%clk 0:02:28.8]} 16... Bxf5 {[%clk 0:02:29.5]} 17. Nxd4
{[%clk 0:02:19.5]} 17... exd4 {[%clk 0:02:30.4]} 18. Ba1 {[%clk 0:02:19.3]}
18... Qd7 {[%clk 0:02:27.7]} 19. Ne4 {[%clk 0:02:16.6]} 19... Rae8 {[%clk
0:02:22.1]} 20. Ng5 {[%clk 0:02:08.2]} 20... d3 {[%clk 0:01:47.4]} 21. Ne6
{[%clk 0:02:07.6]} 21... Bxe6 {[%clk 0:01:35.4]} 22. dxe6 {[%clk 0:02:04.4]}
22... Qe7 {[%clk 0:01:21.8]} 23. Bxb7 {[%clk 0:01:50.7]} 23... Bxa1 {[%clk
0:01:19.5]} 24. Rxa1 {[%clk 0:01:50.2]} 24... Ng7 {[%clk 0:01:12.7]} 25. Bd5
{[%clk 0:01:43.8]} 25... Nxe6 {[%clk 0:01:06.2]} 26. Qxd3 {[%clk 0:01:12.5]}
26... Qf6 {[%clk 0:01:03.3]} 27. Rae1 {[%clk 0:01:08.8]} 27... Kg7 {[%clk
0:01:03.1]} 28. Bxe6 {[%clk 0:01:03.4]} 28... Rxe6 {[%clk 0:01:04]} 29. Rxe6
{[%clk 0:01:03]} 29... Qxe6 {[%clk 0:01:04.3]} 30. Qd4+ {[%clk 0:00:46.2]} 30...
Qf6 {[%clk 0:00:49.1]} 31. Rd1 {[%clk 0:00:36.6]} 31... Re8 {[%clk 0:00:41.7]}
32. Qxf6+ {[%clk 0:00:31.8]} 32... Kxf6 {[%clk 0:00:42.6]} 33. Kf1 {[%clk
0:00:31.1]} 33... Re4 {[%clk 0:00:42.5]} 34. Rd5 {[%clk 0:00:28.1]} 34... Re5
{[%clk 0:00:31.7]} 35. Rxe5 {[%clk 0:00:21.6]} 35... Kxe5 {[%clk 0:00:32.6]} 36.
Ke2 {[%clk 0:00:21.6]} 36... Kd4 {[%clk 0:00:30.2]} 37. Kd2 {[%clk 0:00:20.4]}
37... Ke4 {[%clk 0:00:28.9]} 38. Ke2 {[%clk 0:00:14]} 38... Kd4 {[%clk 0:00:29]}
39. Kd2 {[%clk 0:00:14.5]} 39... Ke4 {[%clk 0:00:29.3]} 40. f4 {[%clk
0:00:14.4]} 40... Kf3 {[%clk 0:00:27]} 41. b4 {[%clk 0:00:13.6]} 41... h5 {[%clk
0:00:25.6]} 42. Kd3 {[%clk 0:00:05.2]} 42... Kg2 {[%clk 0:00:25.8]} 43. Ke3
{[%clk 0:00:05.2]} 43... Kxh2 {[%clk 0:00:25.9]} 44. Kf2 {[%clk 0:00:05.4]}
44... Kh3 {[%clk 0:00:25.7]} 45. Kf3 {[%clk 0:00:05.3]} 45... Kh2 {[%clk
0:00:21.8]} 46. b5 {[%clk 0:00:04]} 46... Kh3 {[%clk 0:00:21.5]} 47. Kf2 {[%clk
0:00:03.7]} 47... Kg4 {[%clk 0:00:21.9]} 48. Kg2 {[%clk 0:00:04]} 48... h4
{[%clk 0:00:20.8]} 49. gxh4 {[%clk 0:00:04.5]} 49... Kxf4 {[%clk 0:00:20.8]} 50.
Kh3 {[%clk 0:00:03.8]} 50... Kf3 {[%clk 0:00:21.2]} 51. h5 {[%clk 0:00:02.6]}
51... gxh5 {[%clk 0:00:21.8]} 52. Kh4 {[%clk 0:00:03.2]} 52... Ke4 {[%clk
0:00:22.4]} 53. Kxh5 {[%clk 0:00:03.8]} 53... Kd4 {[%clk 0:00:22.9]} 54. Kg5
{[%clk 0:00:04]} 54... Kxc4 {[%clk 0:00:23.2]} 55. Kf4 {[%clk 0:00:04.9]} 55...
Kxb5 {[%clk 0:00:23.7]} 56. Ke4 {[%clk 0:00:05.7]} 56... Kc4 {[%clk 0:00:24]}
57. Ke3 {[%clk 0:00:05.8]} 57... d5 {[%clk 0:00:24.9]} 58. Ke2 {[%clk
0:00:06.1]} 58... d4 {[%clk 0:00:25.7]} 59. Kd2 {[%clk 0:00:06.5]} 59... d3
{[%clk 0:00:26.3]} 60. Kd1 {[%clk 0:00:06.8]} 60... Kc3 {[%clk 0:00:26.6]} 61.
Kc1 {[%clk 0:00:07.7]} 61... d2+ {[%clk 0:00:26.6]} 62. Kd1 {[%clk 0:00:07.3]}
62... c5 {[%clk 0:00:26.9]} 63. Ke2 {[%clk 0:00:07.3]} 63... Kc2 {[%clk
0:00:27.4]} 0-1

[Event "Early-Titled-Tuesday-Blitz-January-16-2024"]
[Site "Chess.com"]
[Date "2024.01.16"]
[Round "5"]
[White "SmirnovAlexandrA"]
[Black "MyDream003"]
[Result "0-1"]
[WhiteElo "2641"]
[BlackElo "2865"]
[TimeControl "180+1"]
[EndTime "8:59:22 PST"]
[Termination "MyDream003 won by resignation"]

1. e4 {[%clk 0:02:59.4]} 1... c5 {[%clk 0:02:54.5]} 2. Nf3 {[%clk 0:02:56.6]}
2... d6 {[%clk 0:02:54.7]} 3. Bc4 {[%clk 0:02:56.6]} 3... Nf6 {[%clk 0:02:54.5]}
4. e5 {[%clk 0:02:56.9]} 4... dxe5 {[%clk 0:02:55.4]} 5. Nxe5 {[%clk 0:02:57.7]}
5... e6 {[%clk 0:02:56.1]} 6. Qe2 {[%clk 0:02:58]} 6... Be7 {[%clk 0:02:54.4]}
7. b3 {[%clk 0:02:57.4]} 7... O-O {[%clk 0:02:54.9]} 8. Bb2 {[%clk 0:02:57.6]}
8... a6 {[%clk 0:02:54.5]} 9. a4 {[%clk 0:02:57.3]} 9... Nbd7 {[%clk 0:02:51.1]}
10. f4 {[%clk 0:02:53.8]} 10... Nb6 {[%clk 0:02:48.9]} 11. Bd3 {[%clk
0:02:53.1]} 11... Nbd5 {[%clk 0:02:49.1]} 12. O-O {[%clk 0:02:52.6]} 12... Nb4
{[%clk 0:02:47.5]} 13. Na3 {[%clk 0:02:47.5]} 13... Nxd3 {[%clk 0:02:46.8]} 14.
Nxd3 {[%clk 0:02:48.4]} 14... b6 {[%clk 0:02:46.3]} 15. Nc4 {[%clk 0:02:48.5]}
15... Bb7 {[%clk 0:02:45.9]} 16. Nde5 {[%clk 0:02:46.4]} 16... Qc7 {[%clk
0:02:32.4]} 17. d3 {[%clk 0:02:42.5]} 17... b5 {[%clk 0:02:32.2]} 18. Ne3 {[%clk
0:02:37.2]} 18... Ne8 {[%clk 0:02:19.4]} 19. N3g4 {[%clk 0:02:29.2]} 19... f6
{[%clk 0:02:12.3]} 20. Nf3 {[%clk 0:02:25.5]} 20... Qd7 {[%clk 0:02:04.7]} 21.
Rfe1 {[%clk 0:02:17.5]} 21... Nc7 {[%clk 0:02:04.9]} 22. Nf2 {[%clk 0:02:06.3]}
22... Kh8 {[%clk 0:02:02.3]} 23. axb5 {[%clk 0:01:59.5]} 23... axb5 {[%clk
0:02:03.2]} 24. Rxa8 {[%clk 0:02:00]} 24... Rxa8 {[%clk 0:02:03]} 25. Ra1 {[%clk
0:02:00.7]} 25... Rxa1+ {[%clk 0:02:02]} 26. Bxa1 {[%clk 0:02:01.6]} 26... Nd5
{[%clk 0:02:01]} 27. g3 {[%clk 0:01:47.4]} 27... Qc6 {[%clk 0:01:56.6]} 28. Ne4
{[%clk 0:01:41.8]} 28... Kg8 {[%clk 0:01:39]} 29. h4 {[%clk 0:01:25.3]} 29...
Qa6 {[%clk 0:01:39.2]} 30. Qe1 {[%clk 0:01:18.7]} 30... Nc7 {[%clk 0:01:22.8]}
31. Bc3 {[%clk 0:01:14.7]} 31... Qa2 {[%clk 0:01:15.9]} 32. Qd1 {[%clk
0:01:07.6]} 32... Bc6 {[%clk 0:01:13]} 33. Kf2 {[%clk 0:01:06.8]} 33... Qa6
{[%clk 0:01:10.8]} 34. Qa1 {[%clk 0:01:05.6]} 34... Qb7 {[%clk 0:01:10.7]} 35.
Ned2 {[%clk 0:00:52.6]} 35... Nd5 {[%clk 0:01:07.5]} 36. Bb2 {[%clk 0:00:51.5]}
36... Nb4 {[%clk 0:01:08]} 37. Qb1 {[%clk 0:00:50.6]} 37... Qd7 {[%clk
0:01:06.3]} 38. Bc3 {[%clk 0:00:49.8]} 38... Nd5 {[%clk 0:01:06.2]} 39. Bb2
{[%clk 0:00:49.4]} 39... h6 {[%clk 0:00:57.7]} 40. Qe1 {[%clk 0:00:45.8]} 40...
Nb4 {[%clk 0:00:57.3]} 41. Qd1 {[%clk 0:00:44.8]} 41... Qd5 {[%clk 0:00:56.7]}
42. Bc3 {[%clk 0:00:45.1]} 42... Na2 {[%clk 0:00:53.8]} 43. Bb2 {[%clk
0:00:44.8]} 43... Nb4 {[%clk 0:00:48.4]} 44. Bc3 {[%clk 0:00:44.3]} 44... Bb7
{[%clk 0:00:48.9]} 45. Bxb4 {[%clk 0:00:43.5]} 45... cxb4 {[%clk 0:00:49.8]} 46.
Qe2 {[%clk 0:00:43.8]} 46... Bc5+ {[%clk 0:00:50]} 47. Kg2 {[%clk 0:00:43.1]}
47... f5 {[%clk 0:00:46.3]} 48. Kh3 {[%clk 0:00:28]} 48... Bd6 {[%clk
0:00:43.2]} 49. Kg2 {[%clk 0:00:19.4]} 49... Be7 {[%clk 0:00:42.9]} 50. Nf1
{[%clk 0:00:19.4]} 50... Bc5 {[%clk 0:00:40.2]} 51. Ne3 {[%clk 0:00:17.5]} 51...
Qd4 {[%clk 0:00:35.4]} 52. Nf1 {[%clk 0:00:13.8]} 52... Qg1+ {[%clk 0:00:32.2]}
53. Kh3 {[%clk 0:00:13.3]} 53... Qh1+ {[%clk 0:00:24.5]} 54. N1h2 {[%clk
0:00:13.4]} 54... Bd5 {[%clk 0:00:24.6]} 55. Qf1 {[%clk 0:00:10.2]} 55... Qxf1+
{[%clk 0:00:20.2]} 56. Nxf1 {[%clk 0:00:11.1]} 56... Bxf3 {[%clk 0:00:21]} 0-1

[Event "Early-Titled-Tuesday-Blitz-January-16-2024"]
[Site "Chess.com"]
[Date "2024.01.16"]
[Round "5"]
[White "PavelShkapenko"]
[Black "Aguiar94"]
[Result "1-0"]
[WhiteElo "2771"]
[BlackElo "2525"]
[TimeControl "180+1"]
[EndTime "8:59:23 PST"]
[Termination "PavelShkapenko won by resignation"]

1. e4 {[%clk 0:03:00.9]} 1... c5 {[%clk 0:02:22.9]} 2. c3 {[%clk 0:02:57.9]}
2... g6 {[%clk 0:02:22]} 3. d4 {[%clk 0:02:57.4]} 3... cxd4 {[%clk 0:02:22.9]}
4. cxd4 {[%clk 0:02:58.3]} 4... d5 {[%clk 0:02:23]} 5. Nc3 {[%clk 0:02:59]} 5...
Nf6 {[%clk 0:02:21.2]} 6. e5 {[%clk 0:02:51.8]} 6... Ne4 {[%clk 0:02:20.2]} 7.
Nxe4 {[%clk 0:02:47.5]} 7... dxe4 {[%clk 0:02:21.1]} 8. Bb5+ {[%clk 0:02:47.2]}
8... Bd7 {[%clk 0:02:18.8]} 9. Bc4 {[%clk 0:02:47.3]} 9... Bg7 {[%clk
0:01:46.7]} 10. Ne2 {[%clk 0:02:39.9]} 10... O-O {[%clk 0:01:42.2]} 11. O-O
{[%clk 0:02:40]} 11... Bc6 {[%clk 0:01:39.6]} 12. Nc3 {[%clk 0:02:39.9]} 12...
Nd7 {[%clk 0:01:37.5]} 13. e6 {[%clk 0:02:31.2]} 13... fxe6 {[%clk 0:01:35.7]}
14. Bxe6+ {[%clk 0:02:31.3]} 14... Kh8 {[%clk 0:01:35.6]} 15. d5 {[%clk
0:02:31.7]} 15... Nc5 {[%clk 0:01:32.4]} 16. dxc6 {[%clk 0:02:31.8]} 16... Nxe6
{[%clk 0:01:32.2]} 17. cxb7 {[%clk 0:02:29.8]} 17... Rb8 {[%clk 0:01:30]} 18.
Qg4 {[%clk 0:01:55.9]} 18... Nd4 {[%clk 0:00:53.9]} 19. Qxe4 {[%clk 0:01:53.5]}
19... Qd7 {[%clk 0:00:50.4]} 20. Bf4 {[%clk 0:01:45.2]} 20... Rxb7 {[%clk
0:00:45.9]} 21. Be5 {[%clk 0:01:45.4]} 21... Bxe5 {[%clk 0:00:12]} 22. Qxe5+
{[%clk 0:01:45.4]} 22... Kg8 {[%clk 0:00:12.6]} 23. Rad1 {[%clk 0:01:42.2]}
23... Rd8 {[%clk 0:00:13.2]} 24. b3 {[%clk 0:01:01.9]} 24... Rb6 {[%clk
0:00:09.9]} 25. Kh1 {[%clk 0:00:57.5]} 25... Re6 {[%clk 0:00:08.5]} 26. Qg3
{[%clk 0:00:56.7]} 26... Nf5 {[%clk 0:00:06.5]} 27. Qf3 {[%clk 0:00:50.4]} 27...
Nd6 {[%clk 0:00:05.4]} 28. Na4 {[%clk 0:00:47.5]} 28... Rf6 {[%clk 0:00:05.3]}
29. Qe2 {[%clk 0:00:45.4]} 29... Re6 {[%clk 0:00:03.8]} 30. Qg4 {[%clk
0:00:44.6]} 30... Rf6 {[%clk 0:00:04.7]} 31. Qd4 {[%clk 0:00:42.5]} 31... Qf5
{[%clk 0:00:04.1]} 32. Qe3 {[%clk 0:00:40.9]} 32... Kf7 {[%clk 0:00:03.9]} 33.
Nc5 {[%clk 0:00:40.6]} 33... Re8 {[%clk 0:00:02.1]} 34. Nd3 {[%clk 0:00:36.9]}
34... Kg8 {[%clk 0:00:01.7]} 35. Ne5 {[%clk 0:00:36.2]} 35... Qh5 {[%clk
0:00:02.6]} 36. Nf3 {[%clk 0:00:35.3]} 36... Nf5 {[%clk 0:00:02.9]} 37. Qe5
{[%clk 0:00:33.6]} 37... Rf7 {[%clk 0:00:02.2]} 38. Qe6 {[%clk 0:00:32.3]} 38...
Kg7 {[%clk 0:00:02.2]} 39. Rfe1 {[%clk 0:00:31.8]} 39... Rf6 {[%clk 0:00:03.1]}
40. Qe5 {[%clk 0:00:32.1]} 40... Kg8 {[%clk 0:00:03]} 41. Qd5+ {[%clk
0:00:31.5]} 41... Kg7 {[%clk 0:00:03.2]} 42. Ne5 {[%clk 0:00:30.5]} 42... Rd6
{[%clk 0:00:03.3]} 43. Qf7+ {[%clk 0:00:30.2]} 43... Kh6 {[%clk 0:00:04]} 44.
Qxe8 {[%clk 0:00:29.5]} 44... Rxd1 {[%clk 0:00:03.4]} 45. Qf8+ {[%clk
0:00:29.6]} 45... Kg5 {[%clk 0:00:03.5]} 46. Nf3+ {[%clk 0:00:19.7]} 46... Qxf3
{[%clk 0:00:04]} 47. h4+ {[%clk 0:00:19.4]} 47... Kf4 {[%clk 0:00:03.4]} 48.
gxf3 {[%clk 0:00:18.7]} 48... Rxe1+ {[%clk 0:00:04.3]} 49. Kh2 {[%clk
0:00:19.1]} 49... Kxf3 {[%clk 0:00:04.1]} 50. Qa8+ {[%clk 0:00:17.1]} 50... Kxf2
{[%clk 0:00:04.3]} 51. Qxa7+ {[%clk 0:00:17.4]} 51... Kf3 {[%clk 0:00:04.4]} 52.
Qb7+ {[%clk 0:00:17]} 52... Kg4 {[%clk 0:00:04.7]} 53. Qg2+ {[%clk 0:00:16.4]}
53... Kxh4 {[%clk 0:00:02.4]} 54. Qf2+ {[%clk 0:00:16.7]} 1-0